fUST/lending_fUST_20251231
["ID","MTS","AMOUNT","RATE_DAILY","PERIOD"]
[400127878,1767138643330,-500.0,0.00021989,2]
[400127879,1767138643340,-500.0,0.00021989,2]
[400127880,1767138643349,-500.0,0.00021989,2]
[400127881,1767138643362,-500.0,0.00021989,2]
[400127882,1767138643372,-186.85,0.00022,7]
[400127883,1767138643381,-500.0,0.00022191,2]
[400127884,1767138643390,-500.0,0.00022191,2]
[400127885,1767138643400,-497.71228405,0.00022191,2]
[400127886,1767138643409,-500.0,0.00022191,2]
[400127887,1767138643420,-414.94390591,0.00022191,2]
[400127888,1767138643429,-500.0,0.00022191,2]
[400127889,1767138643439,-500.0,0.00022191,2]
[400127890,1767138643449,-200.40401091,0.00022191,2]
[400127891,1767138643458,-500.0,0.00022191,2]
[400127892,1767138643468,-500.0,0.00022191,2]
[400127893,1767138643477,-222.9,0.00022203,2]
[400127894,1767138643487,-20243.46,0.000223,3]
[400127895,1767138643496,-683.02,0.00022348,3]
[400127896,1767138643505,-500.0,0.00022465,2]
[400127897,1767138643515,-500.0,0.00022465,2]
[400127898,1767138643524,-500.0,0.00022465,2]
[400127899,1767138643534,-500.0,0.00022465,2]
[400127900,1767138643543,-500.0,0.00022465,2]
[400127901,1767138643554,-639.8,0.00022465,2]
[400127902,1767138643563,-300.0,0.00022466,2]
[400127903,1767138643573,-1000.0,0.000225,10]
[400127905,1767138643582,-492.0,0.000225,10]
[400127907,1767138643592,-151.0,0.000225,10]
[400127909,1767138643601,-151.0,0.000225,7]
[400127911,1767138643612,-151.0,0.000225,7]
[400127913,1767138643622,-151.0,0.000225,7]
[400127914,1767138643633,-151.0,0.000225,6]
[400127915,1767138643644,-151.0,0.000225,10]
[400127916,1767138643653,-500.0,0.00022511,2]
[400127917,1767138643662,-500.0,0.00022599,2]
[400127918,1767138643671,-500.0,0.00022599,2]
[400127919,1767138643680,-527.17756015,0.00022599,2]
[400127920,1767138643690,-9286.76,0.000226,2]
[400127921,1767138643701,-262.44,0.000226,2]
[400127922,1767138643710,-151.0,0.000226,10]
[400127923,1767138643720,-151.0,0.000226,6]
[400127924,1767138643730,-151.0,0.000226,5]
[400127925,1767138643739,-243.15444015,0.00022623,2]
[400127926,1767138643749,-600.0,0.00022691,2]
[400127927,1767138643759,-1041.66666667,0.00022726,2]
[400127928,1767138643769,-500.0,0.00022739,2]
[400127929,1767138643778,-500.0,0.00022739,2]
[400127930,1767138643787,-324.0813559,0.00022739,2]
[400127931,1767138643797,-500.0,0.00022739,2]
[400127932,1767138643806,-500.0,0.00022739,2]
[400127933,1767138643816,-164.88,0.000228,7]
[400127934,1767138643826,-230.66,0.00022929,30]
[400127935,1767138643835,-377.03209432,0.00022943,2]
[400127936,1767138643845,-500.0,0.00022951,2]
[400127937,1767138643855,-600.0,0.00022957,2]
[400127938,1767138643865,-500.0,0.00023013,2]
[400127939,1767138643874,-500.0,0.00023013,2]
[400127940,1767138643884,-500.0,0.00023013,2]
[400127941,1767138643893,-500.0,0.00023013,2]
[400127942,1767138643902,-450.0,0.00023014,2]
[400127943,1767138643912,-607.0,0.00023049,2]
[400127944,1767138643921,-500.0,0.00023287,2]
[400127945,1767138643930,-500.0,0.00023287,2]
[400127946,1767138643939,-288.95766043,0.00023287,2]
[400127947,1767138643948,-243.15444015,0.00023347,2]
[400127948,1767138643958,-600.0,0.00023498,2]
[400127949,1767138643970,-222.9,0.00023548,2]
[400127950,1767138643979,-333.33,0.00023561,2]
[400127951,1767138643988,-500.0,0.00023561,2]
[400127952,1767138643998,-425.05756062,0.00023562,2]
[400127953,1767138644007,-6903.91115042,0.00023585,2]
[400127954,1767138644016,-500.0,0.00023695,2]
[400127955,1767138644025,-200.0,0.00023835,2]
[400127956,1767138644035,-406.3,0.00023835,2]
[400127957,1767138644045,-600.0,0.00023861,2]
[400127958,1767138644054,-288.32,0.00023884,30]
[400127959,1767138644063,-453.73487324,0.000239,2]
[400127960,1767138644072,-453.73487316,0.000239,2]
[400127961,1767138644082,-453.73487316,0.000239,2]
[400127962,1767138644091,-243.15444015,0.0002407,2]
[400127963,1767138644100,-186.85,0.000241,7]
[400127964,1767138644110,-453.73487316,0.00024262,2]
[400127965,1767138644119,-600.0,0.00024331,2]
[400127966,1767138644129,-600.0,0.00024375,2]
[400127967,1767138644138,-600.0,0.0002455,2]
[400127968,1767138644148,-20243.39,0.000246,3]
[400127969,1767138644158,-2000.0,0.00024645,7]
[400127970,1767138644167,-282.09413633,0.00024693,2]
[400127971,1767138644177,-280.41307034,0.00024693,2]
[400127972,1767138644186,-1000.0,0.0002475,10]
[400127973,1767138644196,-791.0,0.0002475,10]
[400127974,1767138644206,-243.15444015,0.00024793,2]
[400127975,1767138644215,-345.99,0.0002484,30]
[400127976,1767138644225,-8776.57029111,0.00024842,2]
[400127977,1767138644235,-453.73487316,0.00024849,2]
[400127978,1767138644244,-600.0,0.00024867,2]
[400127979,1767138644254,-600.0,0.00024882,2]
[400127980,1767138644263,-222.9,0.00024893,2]
[400127981,1767138644273,-9286.76,0.000249,2]
[400127982,1767138644282,-496684.666527,0.000249,2]
[400127983,1767138644292,-500.0,0.00024943,2]
[400127984,1767138644302,-412.75092431,0.00024943,2]
[400127985,1767138644312,-160.46,0.000252,7]
[400127986,1767138644322,-262.44,0.000252,2]
[400127987,1767138644331,-164.88,0.000253,7]
[400127988,1767138644341,-453.73487316,0.00025437,2]
[400127989,1767138644351,-500.0,0.00025508,7]
[400127990,1767138644361,-600.0,0.00025543,7]
[400127991,1767138644370,-403.65,0.00025795,30]
[400127992,1767138644381,-453.73487316,0.00026024,2]
[400127993,1767138644390,-600.0,0.00026109,7]
[400127994,1767138644400,-500.0,0.0002619,2]
[400127995,1767138644409,-222.9,0.00026239,2]
[400127996,1767138644419,-8776.57029107,0.00026245,2]
[400127997,1767138644428,-600.0,0.00026343,7]
[400127998,1767138644438,-500.0,0.00026353,7]
[400127999,1767138644448,-2000.0,0.00026564,7]
[400128000,1767138644457,-186.85,0.000266,7]
[400128001,1767138644467,-453.73487316,0.00026611,2]
[400128002,1767138644477,-500.0,0.00026635,7]
[400128003,1767138644486,-726.0,0.00026719,3]
[400128004,1767138644495,-1808.2093343,0.00026739,2]
[400128005,1767138644505,-461.31,0.00026751,30]
[400128006,1767138644514,-600.0,0.00026831,7]
[400128007,1767138644524,-448.4697543,0.00026943,2]
[400128008,1767138644534,-183.0,0.00027,7]
[400128009,1767138644543,-166.0,0.00027,7]
[400128010,1767138644554,-1267.74428336,0.00027,2]
[400128011,1767138644563,-400.0,0.00027,2]
[400128012,1767138644572,-6903.91115042,0.00027056,2]
[400128013,1767138644582,-5000.0,0.00027135,15]
[400128014,1767138644591,-500.0,0.00027144,7]
[400128015,1767138644600,-600.0,0.00027187,7]
[400128016,1767138644610,-453.73487316,0.00027199,2]
[400128017,1767138644620,-1000.0,0.00027225,30]
[400128018,1767138644629,-1000.0,0.00027225,30]
[400128019,1767138644639,-1236.84952003,0.00027225,10]
[400128020,1767138644648,-9286.76,0.000273,2]
[400128021,1767138644657,-500.0,0.00027397,2]
[400128022,1767138644667,-376.17887363,0.00027397,2]
[400128023,1767138644677,-500.0,0.00027397,2]
[400128024,1767138644686,-500.0,0.00027397,2]
[400128025,1767138644695,-299.0,0.00027397,2]
[400128026,1767138644705,-299.0,0.00027397,2]
[400128027,1767138644714,-299.0,0.00027397,2]
[400128028,1767138644723,-299.0,0.00027397,2]
[400128029,1767138644733,-299.0,0.00027397,2]
[400128030,1767138644742,-299.0,0.00027397,2]
[400128031,1767138644751,-299.0,0.00027397,2]
[400128032,1767138644760,-299.0,0.00027397,2]
[400128033,1767138644770,-299.0,0.00027397,2]
[400128034,1767138644780,-299.0,0.00027397,2]
[400128035,1767138644789,-299.0,0.00027397,2]
[400128036,1767138644799,-299.0,0.00027397,2]
[400128037,1767138644808,-299.0,0.00027397,2]
[400128038,1767138644818,-299.0,0.00027397,2]
[400128039,1767138644828,-299.0,0.00027397,2]
[400128040,1767138644837,-299.0,0.00027397,2]
[400128041,1767138644847,-299.0,0.00027397,2]
[400128043,1767138644856,-299.0,0.00027397,2]
[400128045,1767138644865,-299.0,0.00027397,2]
[400128046,1767138644874,-299.0,0.00027397,2]
[400128048,1767138644883,-299.0,0.00027397,2]
[400128050,1767138644892,-299.0,0.00027397,2]
[400128052,1767138644901,-299.0,0.00027397,2]
[400128053,1767138644911,-299.0,0.00027397,2]
[400128054,1767138644920,-299.0,0.00027397,2]
[400128055,1767138644930,-299.0,0.00027397,2]
[400128056,1767138644939,-299.0,0.00027397,2]
[400128057,1767138644948,-299.0,0.00027397,2]
[400128058,1767138644958,-299.0,0.00027397,2]
[400128059,1767138644970,-299.0,0.00027397,2]
[400128060,1767138644979,-299.0,0.00027397,2]
[400128061,1767138644989,-299.0,0.00027397,2]
[400128062,1767138644998,-600.0,0.00027402,7]
[400128063,1767138645008,-500.0,0.00027499,5]
[400128064,1767138645018,-164.88,0.000275,7]
[400128065,1767138645028,-222.9,0.00027584,2]
[400128066,1767138645037,-2403.0,0.00027589,2]
[400128067,1767138645048,-8776.57029107,0.00027648,2]
[400128068,1767138645057,-250.0,0.000277,10]
[400128069,1767138645066,-518.98,0.00027706,30]
[400128070,1767138645075,-34999.86459252,0.0002772,2]
[400128076,1767138645939,-1617.02,0.000192,2]
[400128077,1767138645949,-1617.02,0.000211,2]
[400128078,1767138645990,-1617.02,0.000228,14]
[400128079,1767138645999,-1617.02,0.000247,14]
[400128080,1767138646010,-23894.74207484,0.0002772,2]
[400128083,1767138647043,-377.87841504,0.0002772,2]
[400128084,1767138647068,-165.63254744,0.0002772,2]
[400128085,1767138647079,-1413.2876182,0.0002772,2]
[400128086,1767138760997,150.0,0.00012566,2]
[400128087,1767138770143,683.02,0.00012329,2]
[400128088,1767138780591,227.67,0.00012329,2]
[400128089,1767138791067,189.73,0.00012329,2]
[400128090,1767138801447,158.11,0.00012329,2]
[400128091,1767138812051,790.55,0.00012329,2]
[400128092,1767138837183,150.0,0.00012177,2]
[400128093,1767138837611,290.39,0.00012757,2]
[400128094,1767138916681,150.0,0.00012173,2]
[400128095,1767138917619,290.81,0.00012753,2]
[400128096,1767138922106,763.0,0.00028767,120]
[400128097,1767138995808,150.0,0.00012245,2]
[400128098,1767138998990,740.88140641,0.0001277,2]
[400128099,1767139075787,150.0,0.00012189,2]
[400128100,1767139076237,297.94,0.00012769,2]
[400128101,1767139106003,3192.4144101,0.00012153,2]
[400128102,1767139154143,151.24,0.00012183,2]
[400128103,1767139154583,302.48,0.00012763,2]
[400128104,1767139232681,153.13,0.00012193,2]
[400128105,1767139312135,153.64,0.00012182,2]
[400128106,1767139312576,307.27,0.00012762,2]
[400128107,1767139391754,155.05,0.00012189,2]
[400128108,1767139392289,266.69774309,0.0001277,2]
[400128109,1767139392314,43.40225691,0.0001277,2]
[400128110,1767139471243,151.46,0.00012181,2]
[400128111,1767139471648,302.93,0.00012762,2]
[400128112,1767139550909,150.0,0.0001218,2]
[400128113,1767139551321,296.08,0.0001276,2]
[400128114,1767139565922,1039.9,0.0002876,120]
[400128115,1767139583042,731.0,0.00028767,120]
[400128116,1767139606335,9056.13774309,0.00012152,2]
[400128117,1767139606358,2715.05622531,0.00012152,2]
[400128118,1767139606770,999.0,0.00012152,2]
[400128120,1767139628971,150.0,0.00012156,2]
[400128121,1767139629427,289.39,0.00012734,2]
[400128122,1767139680591,249.81,8.492e-05,2]
[400128123,1767139708100,150.0,0.00012159,2]
[400128124,1767139708539,282.8,0.00012738,2]
[400128125,1767139787909,150.0,0.00012162,2]
[400128126,1767139788308,276.33,0.00012741,2]
[400128150,1767139831912,-502.56647399,0.00012939,2]
[400128153,1767139831955,-473.71722383,0.00012939,2]
[400128154,1767139831965,-603.0,0.00012939,2]
[400128155,1767139831974,-300.0,0.00013069,2]
[400128156,1767139831983,-1200.0,0.00013069,2]
[400128157,1767139831992,-298.0,0.00013069,2]
[400128158,1767139832002,-28140.45262194,0.0001307,2]
[400128159,1767139832012,-551.15446361,0.0001307,2]
[400128160,1767139832030,-9092.82654143,0.0001307,2]
[400128168,1767139838132,-829.03730397,0.0001307,2]
[400128169,1767139838143,-291.300155,0.0001307,2]
[400128170,1767139838272,-961095.22891405,0.0001307,2]
[400128171,1767139838282,-201.78831044,0.0001307,2]
[400128172,1767139838292,-186.29158513,0.00013071,2]
[400128173,1767139838302,-243.15444016,0.000131,2]
[400128174,1767139838312,-500.0,0.0001317,2]
[400128175,1767139838321,-441.63186024,0.0001317,2]
[400128176,1767139838331,-500.0,0.0001317,2]
[400128177,1767139838340,-171.42999674,0.0001317,2]
[400128178,1767139838349,-273.84543393,0.0001317,2]
[400128179,1767139838359,-174.20934872,0.0001317,2]
[400128180,1767139838368,-50000.0,0.00013171,2]
[400128181,1767139838377,-279.735,0.00013171,2]
[400128182,1767139838386,-500.0,0.00013172,2]
[400128183,1767139838395,-226.16806816,0.00013172,2]
[400128184,1767139838404,-1151.75912142,0.00013172,2]
[400128185,1767139838415,-323.67040386,0.00013172,2]
[400128186,1767139838424,-1151.75912142,0.00013172,2]
[400128187,1767139838434,-1151.75912142,0.00013172,2]
[400128188,1767139838443,-1151.75912142,0.00013172,2]
[400128189,1767139838453,-1151.75912142,0.00013172,2]
[400128190,1767139838463,-1151.75912142,0.00013172,2]
[400128191,1767139838473,-1151.75912142,0.00013172,2]
[400128192,1767139838483,-1151.75912142,0.00013172,2]
[400128193,1767139838493,-1151.75912142,0.00013172,2]
[400128194,1767139838503,-1151.75912142,0.00013172,2]
[400128195,1767139838512,-1151.75912142,0.00013172,2]
[400128196,1767139838522,-1151.75912142,0.00013172,2]
[400128197,1767139838531,-1151.75912142,0.00013172,2]
[400128198,1767139838541,-1151.75912142,0.00013172,2]
[400128199,1767139838550,-1151.75912142,0.00013172,2]
[400128200,1767139838559,-1151.75912142,0.00013172,2]
[400128201,1767139838569,-1151.75912142,0.00013172,2]
[400128202,1767139838579,-1151.75912142,0.00013172,2]
[400128203,1767139838589,-1197.82948627,0.00013172,2]
[400128204,1767139838599,-1197.82948627,0.00013172,2]
[400128205,1767139838608,-1197.82948627,0.00013172,2]
[400128206,1767139838617,-1197.82948627,0.00013172,2]
[400128207,1767139838627,-1197.82948627,0.00013172,2]
[400128208,1767139838636,-1197.82948627,0.00013172,2]
[400128209,1767139838647,-1197.82948627,0.00013172,2]
[400128210,1767139838656,-1197.82948627,0.00013172,2]
[400128211,1767139838665,-2057.55063443,0.00013172,2]
[400128212,1767139838675,-2057.55063443,0.00013172,2]
[400128213,1767139838685,-2057.55063443,0.00013172,2]
[400128214,1767139838695,-2057.55063443,0.00013172,2]
[400128215,1767139838705,-314.10208238,0.00013172,2]
[400128216,1767139838715,-172.01,0.00013172,2]
[400128217,1767139838724,-151.0,0.000132,2]
[400128218,1767139838734,-151.0,0.000132,2]
[400128219,1767139838744,-151.0,0.000132,2]
[400128220,1767139838754,-151.0,0.000132,2]
[400128221,1767139838763,-151.0,0.000132,2]
[400128222,1767139838773,-151.0,0.000132,2]
[400128223,1767139838785,-151.0,0.000132,2]
[400128224,1767139838795,-151.0,0.000132,2]
[400128225,1767139838804,-151.0,0.000132,2]
[400128226,1767139838813,-555.66200372,0.00013273,2]
[400128227,1767139838824,-500.0,0.00013273,2]
[400128228,1767139838833,-488.21037431,0.00013273,2]
[400128229,1767139838843,-500.0,0.00013273,2]
[400128230,1767139838852,-500.0,0.00013273,2]
[400128231,1767139838863,-500.0,0.00013273,2]
[400128232,1767139838873,-500.0,0.00013273,2]
[400128233,1767139838883,-500.0,0.00013273,2]
[400128234,1767139838893,-230.16939342,0.00013273,2]
[400128235,1767139838902,-500.0,0.00013273,2]
[400128236,1767139838912,-414.49,0.0001332,2]
[400128237,1767139838922,-300.0,0.00013332,2]
[400128238,1767139838931,-300.0,0.00013332,2]
[400128239,1767139838941,-300.0,0.00013332,2]
[400128240,1767139838950,-300.0,0.00013332,2]
[400128241,1767139838961,-300.0,0.00013332,2]
[400128242,1767139838971,-300.0,0.00013332,2]
[400128243,1767139838980,-300.0,0.00013332,2]
[400128244,1767139838989,-300.0,0.00013332,2]
[400128245,1767139838999,-300.0,0.00013332,2]
[400128246,1767139839008,-300.0,0.00013332,2]
[400128247,1767139839018,-300.0,0.00013332,2]
[400128248,1767139839028,-300.0,0.00013332,2]
[400128249,1767139839037,-300.0,0.00013332,2]
[400128250,1767139839047,-300.0,0.00013332,2]
[400128251,1767139839057,-300.0,0.00013332,2]
[400128252,1767139839067,-600.0,0.00013433,2]
[400128253,1767139839077,-10046.3898032,0.0001354,2]
[400128254,1767139839086,-500.0,0.00013698,2]
[400128255,1767139839096,-500.0,0.00013698,2]
[400128256,1767139839106,-500.0,0.00013698,2]
[400128257,1767139839115,-500.0,0.00013698,2]
[400128258,1767139839125,-500.0,0.00013698,2]
[400128259,1767139839135,-500.0,0.00013698,2]
[400128260,1767139839145,-500.0,0.00013698,2]
[400128261,1767139839154,-500.0,0.00013698,2]
[400128262,1767139839164,-500.0,0.00013698,2]
[400128263,1767139839173,-500.0,0.00013698,2]
[400128264,1767139839183,-500.0,0.00013698,2]
[400128265,1767139839193,-500.0,0.00013698,2]
[400128266,1767139839203,-500.0,0.00013698,2]
[400128267,1767139839212,-500.0,0.00013698,2]
[400128268,1767139839222,-500.0,0.00013698,2]
[400128269,1767139839231,-500.0,0.00013698,2]
[400128270,1767139839241,-500.0,0.00013698,2]
[400128271,1767139839250,-500.0,0.00013698,2]
[400128272,1767139839260,-500.0,0.00013698,2]
[400128273,1767139839270,-500.0,0.00013698,2]
[400128274,1767139839279,-500.0,0.00013698,2]
[400128275,1767139839289,-500.0,0.00013698,2]
[400128276,1767139839298,-500.0,0.00013698,2]
[400128277,1767139839308,-527.17756015,0.00013698,2]
[400128278,1767139839318,-614.040808,0.00013699,2]
[400128279,1767139839328,-500.0,0.00013699,2]
[400128280,1767139839337,-500.0,0.00013699,2]
[400128281,1767139839347,-178.05611583,0.00013699,2]
[400128282,1767139839356,-500.0,0.00013699,2]
[400128283,1767139839365,-500.0,0.00013699,2]
[400128284,1767139839374,-500.0,0.00013699,2]
[400128285,1767139839384,-500.0,0.00013699,2]
[400128286,1767139839393,-209.21067794,0.00013699,2]
[400128287,1767139839401,-500.0,0.00013699,2]
[400128288,1767139839410,-500.0,0.00013699,2]
[400128289,1767139839419,-500.0,0.00013699,2]
[400128290,1767139839429,-500.0,0.00013699,2]
[400128291,1767139839439,-500.0,0.00013699,2]
[400128292,1767139839448,-500.0,0.00013699,2]
[400128293,1767139839458,-1000.0,0.00013821,2]
[400128294,1767139839467,-861.35366705,0.00013821,2]
[400128295,1767139839477,-552.66,0.00013899,2]
[400128296,1767139839487,-304.76708556,0.00014247,2]
[400128297,1767139839496,-1000.0,0.00014247,2]
[400128298,1767139839506,-1000.0,0.00014247,2]
[400128299,1767139839515,-582.9,0.00014268,2]
[400128300,1767139839524,-420.0,0.00014331,2]
[400128301,1767139839534,-1177.70685836,0.00014368,2]
[400128302,1767139839543,-1680.0,0.00014375,2]
[400128303,1767139839552,-690.82,0.00014478,2]
[400128304,1767139839562,-720.0,0.00014776,2]
[400128305,1767139839571,-1159.30684058,0.00014795,2]
[400128306,1767139839580,-500.0,0.00014795,2]
[400128307,1767139839589,-100000.0,0.00015028,2]
[400128308,1767139839599,-802.0223892,0.00015032,2]
[400128309,1767139839608,-828.99,0.00015058,2]
[400128310,1767139839618,-238.11020632,0.0001507,2]
[400128311,1767139839627,-967.15,0.00015637,2]
[400128312,1767139839637,-587.0,0.00015715,2]
[400128313,1767139839646,-2351.0,0.00015813,2]
[400128314,1767139839655,-243.15444015,0.00015964,2]
[400128315,1767139839665,-1105.32,0.00016216,2]
[400128316,1767139839674,-864.0,0.00016254,2]
[400128317,1767139839684,-500.0,0.00016438,2]
[400128318,1767139839694,-237.2637316,0.00016438,2]
[400128319,1767139839703,-1243.48,0.00016795,2]
[400128320,1767139839712,-274.4321022,0.0001707,2]
[400128321,1767139839721,-250.0,0.00017097,2]
[400128322,1767139839731,-823.0,0.00017233,2]
[400128323,1767139839740,-150.0,0.00017356,30]
[400128324,1767139839749,-1381.65,0.00017374,2]
[400128325,1767139839759,-3292.0,0.00017394,2]
[400128326,1767139839768,-1000.0,0.00017879,2]
[400128327,1767139839780,-802.0223892,0.00018096,2]
[400128328,1767139839789,-150.0,0.00018183,30]
[400128329,1767139839798,-243.15444015,0.00018829,2]
[400128330,1767139839807,-1152.0,0.00018898,2]
[400128331,1767139839817,-302.8788636,0.000189,2]
[400128332,1767139839827,-177.64,0.00019009,30]
[400128334,1767139839836,-310.75399808,0.0001907,2]
[400128335,1767139839845,-302.8788636,0.00019089,2]
[400128336,1767139839854,-765.0,0.00019134,2]
[400128337,1767139839864,-500.0,0.00019178,2]
[400128339,1767139839873,-500.0,0.00019178,2]
[400128340,1767139839882,-500.0,0.00019178,2]
[400128341,1767139839891,-500.0,0.00019178,2]
[400128342,1767139839900,-500.0,0.00019178,2]
[400128343,1767139839910,-500.0,0.00019178,2]
[400128344,1767139839920,-500.0,0.00019178,2]
[400128345,1767139839929,-500.0,0.00019178,2]
[400128346,1767139839939,-500.0,0.00019178,2]
[400128347,1767139839948,-500.0,0.00019178,2]
[400128348,1767139839958,-500.0,0.00019178,2]
[400128349,1767139839968,-500.0,0.00019178,2]
[400128350,1767139839977,-500.0,0.00019178,2]
[400128351,1767139839986,-500.0,0.00019178,2]
[400128352,1767139839995,-500.0,0.00019178,2]
[400128353,1767139840005,-500.0,0.00019178,2]
[400128355,1767139840014,-500.0,0.00019178,2]
[400128356,1767139840024,-500.0,0.00019178,2]
[400128358,1767139840033,-500.0,0.00019178,2]
[400128360,1767139840043,-500.0,0.00019178,2]
[400128362,1767139840052,-500.0,0.00019178,2]
[400128363,1767139840062,-500.0,0.00019178,2]
[400128364,1767139840072,-500.0,0.00019178,2]
[400128365,1767139840084,-500.0,0.00019178,2]
[400128366,1767139840093,-500.0,0.00019178,2]
[400128367,1767139840103,-500.0,0.00019178,2]
[400128368,1767139840112,-500.0,0.00019178,2]
[400128369,1767139840121,-500.0,0.00019178,2]
[400128370,1767139840130,-500.0,0.00019178,2]
[400128371,1767139840140,-500.0,0.00019178,2]
[400128372,1767139840149,-500.0,0.00019178,2]
[400128373,1767139840158,-500.0,0.00019178,2]
[400128374,1767139840167,-500.0,0.00019178,2]
[400128375,1767139840176,-500.0,0.00019178,2]
[400128377,1767139840185,-500.0,0.00019178,2]
[400128378,1767139840194,-500.0,0.00019178,2]
[400128379,1767139840203,-500.0,0.00019178,2]
[400128380,1767139840212,-500.0,0.00019178,2]
[400128381,1767139840221,-618.022375,0.00019178,2]
[400128382,1767139840230,-500.0,0.00019178,2]
[400128383,1767139840240,-500.0,0.00019178,2]
[400128384,1767139840249,-500.0,0.00019178,2]
[400128385,1767139840259,-500.0,0.00019178,2]
[400128386,1767139840268,-500.0,0.00019178,2]
[400128387,1767139840277,-500.0,0.00019178,2]
[400128388,1767139840287,-500.0,0.00019178,2]
[400128389,1767139840296,-500.0,0.00019178,2]
[400128390,1767139840305,-500.0,0.00019178,2]
[400128391,1767139840315,-500.0,0.00019178,2]
[400128392,1767139840324,-500.0,0.00019178,2]
[400128393,1767139840333,-161.8022375,0.00019178,2]
[400128394,1767139840343,-500.0,0.00019178,2]
[400128395,1767139840352,-500.0,0.00019178,2]
[400128396,1767139840361,-500.0,0.00019178,2]
[400128397,1767139840370,-500.0,0.00019178,2]
[400128398,1767139840380,-500.0,0.00019178,2]
[400128399,1767139840389,-500.0,0.00019178,2]
[400128400,1767139840398,-500.0,0.00019178,2]
[400128401,1767139840407,-500.0,0.00019178,2]
[400128402,1767139840417,-500.0,0.00019178,2]
[400128403,1767139840426,-500.0,0.00019178,2]
[400128404,1767139840439,-500.0,0.00019178,2]
[400128405,1767139840448,-500.0,0.00019178,2]
[400128406,1767139840457,-500.0,0.00019178,2]
[400128407,1767139840467,-500.0,0.00019178,2]
[400128408,1767139840476,-500.0,0.00019178,2]
[400128409,1767139840485,-500.0,0.00019178,2]
[400128410,1767139840495,-500.0,0.00019178,2]
[400128411,1767139840504,-400.0,0.00019178,2]
[400128412,1767139840514,-500.0,0.00019178,2]
[400128413,1767139840523,-500.0,0.00019178,2]
[400128414,1767139840533,-500.0,0.00019178,2]
[400128415,1767139840682,-500.0,0.00019178,2]
[400128416,1767139840692,-500.0,0.00019178,2]
[400128417,1767139840701,-500.0,0.00019178,2]
[400128418,1767139840711,-500.0,0.00019178,2]
[400128419,1767139840721,-500.0,0.00019178,2]
[400128420,1767139840730,-164.88,0.000192,2]
[400128421,1767139840740,-970.21,0.000192,2]
[400128422,1767139840750,-160.46,0.000192,2]
[400128423,1767139840759,-166.35,0.000192,2]
[400128424,1767139840768,-9286.76,0.000192,2]
[400128425,1767139840780,-302.8788636,0.00019278,2]
[400128426,1767139840793,-302.8788636,0.00019467,2]
[400128427,1767139840803,-302.8788636,0.00019656,2]
[400128428,1767139840812,-1000.0,0.00019667,2]
[400128429,1767139840821,-244.0,0.00019667,2]
[400128430,1767139840832,-236.85,0.00019836,30]
[400128431,1767139840841,-454.3182954,0.00019845,4]
[400128432,1767139840851,-454.3182954,0.00020034,4]
[400128433,1767139840860,-614.040808,0.00020187,2]
[400128434,1767139840869,-454.3182954,0.00020223,4]